bitfinex/quotes_BTCUSD_20241206
["timestamp","ask_amount","ask_price","bid_price","bid_amount"]
[1733528498399,0.25,99793.0,99790.0,0.10002951]
[1733528498817,0.25,99793.0,99791.0,0.023]
[1733528499027,0.25,99793.0,99792.0,0.10002951]
[1733528499249,0.25,99794.0,99792.0,0.12302951]
[1733528499460,0.25,99794.0,99793.0,0.023]
[1733528499680,0.25,99794.0,99793.0,0.12302951]
[1733528500368,0.25,99797.0,99793.0,0.12302951]
[1733528500591,0.25,99797.0,99794.0,0.10002951]
[1733528500806,0.25,99797.0,99790.0,0.12302951]
[1733528501086,0.25,99797.0,99792.0,0.023]
[1733528501318,0.25,99794.0,99792.0,0.12302951]
[1733528502178,0.25,99794.0,99793.0,0.10002951]
[1733528502408,0.25,99794.0,99793.0,0.12302951]
[1733528504773,0.252,99794.0,99793.0,0.20122951]
[1733528505234,0.002,99794.0,99793.0,0.20122951]
[1733528506137,0.25,99806.0,99794.0,0.023]
[1733528506347,0.00017315,99806.0,99797.0,0.023]
[1733528506556,0.00017315,99806.0,99798.0,0.10002951]
[1733528506764,0.00017315,99806.0,99799.0,0.023]
[1733528506974,0.00017315,99806.0,99801.0,0.023]
[1733528507183,0.25017315,99806.0,99803.0,0.023]
[1733528507395,0.25017315,99806.0,99804.0,0.10002951]
[1733528507605,0.25017315,99806.0,99805.0,0.023]
[1733528507827,0.25017315,99806.0,99805.0,0.12302951]
[1733528508271,0.00017315,99806.0,99805.0,0.12302951]
[1733528509005,0.00017315,99806.0,99805.0,0.12402951]
[1733528509239,0.25017315,99806.0,99805.0,0.12402951]
[1733528510114,0.25017315,99806.0,99805.0,0.12502951]
[1733528511858,0.25017315,99806.0,99805.0,0.025]
[1733528512076,0.25017315,99806.0,99805.0,0.002]
[1733528512569,0.25017315,99806.0,99805.0,0.001]
[1733528512788,0.29987315,99806.0,99790.0,0.0008681]
[1733528513037,0.29987315,99806.0,99791.0,0.10002951]
[1733528513266,0.25217315,99806.0,99791.0,0.10002951]
[1733528513486,0.25017315,99806.0,99791.0,0.10002951]
[1733528513720,0.25217315,99806.0,99791.0,0.10002951]
[1733528513948,0.25017315,99806.0,99791.0,0.10002951]
[1733528514181,0.25,99799.0,99792.0,0.023]
[1733528514418,0.25,99799.0,99793.0,0.10002951]
[1733528514840,0.25,99799.0,99794.0,0.023]
[1733528515061,0.25,99799.0,99795.0,0.10002951]
[1733528515477,0.25,99799.0,99796.0,0.023]
[1733528515718,0.25,99799.0,99797.0,0.10002951]
[1733528515936,0.25,99799.0,99798.0,0.023]
[1733528516148,0.25,99799.0,99798.0,0.12302951]
[1733528516420,0.25,99801.0,99798.0,0.12302951]
[1733528516631,0.25,99801.0,99799.0,0.10002951]
[1733528516848,0.25,99801.0,99800.0,0.023]
[1733528517105,0.25,99801.0,99800.0,0.12302951]
[1733528517327,0.00017315,99806.0,99800.0,0.12302951]
[1733528517547,0.00017315,99806.0,99802.0,0.023]
[1733528517800,0.00017315,99806.0,99804.0,0.023]
[1733528518025,0.00017315,99806.0,99804.0,0.12302951]
[1733528519156,0.00017315,99806.0,99804.0,0.12402951]
[1733528519379,0.25,99805.0,99804.0,0.12402951]
[1733528519607,0.25,99805.0,99804.0,0.12302951]
[1733528520522,0.251,99805.0,99804.0,0.12302951]
[1733528522195,0.251,99805.0,99780.0,0.0008685]
[1733528522427,0.00738692,99804.0,99792.0,0.023]
[1733528522672,0.00738692,99804.0,99793.0,0.10002951]
[1733528522966,0.00738692,99804.0,99794.0,0.023]
[1733528523172,0.00738692,99804.0,99795.0,0.10002951]
[1733528523414,0.25,99802.0,99796.0,0.023]
[1733528523651,0.25,99802.0,99798.0,0.023]
[1733528523891,0.25,99802.0,99800.0,0.023]
[1733528524119,0.25,99802.0,99801.0,0.10002951]
[1733528524359,0.00017315,99806.0,99802.0,0.023]
[1733528524595,0.00017315,99806.0,99804.0,0.023]
[1733528525825,0.00017315,99806.0,99805.0,0.12302951]
[1733528526289,0.00117315,99806.0,99805.0,0.12302951]
[1733528527181,0.00017315,99806.0,99805.0,0.12302951]
[1733528527398,0.25117315,99806.0,99805.0,0.12302951]
[1733528534609,0.25856589,99806.0,99805.0,0.12302951]
[1733528536538,0.25856638,99806.0,99805.0,0.12302951]
[1733528536987,0.2585667,99806.0,99805.0,0.12302951]
[1733528537526,0.2585667,99806.0,99800.0,0.0008681]
[1733528537527,0.05,99801.0,99800.0,0.0008681]
[1733528537980,0.05739355,99801.0,99800.0,0.0008681]
[1733528538213,0.30739355,99801.0,99800.0,0.0008681]
[1733528539660,0.30839355,99801.0,99800.0,0.0008681]
[1733528540275,0.31039355,99801.0,99800.0,0.0008681]
[1733528540683,0.39019355,99801.0,99800.0,0.0008681]
[1733528545535,0.31039355,99801.0,99800.0,0.0008681]
[1733528547762,0.26039355,99801.0,99800.0,0.12389761]
[1733528547967,0.253,99801.0,99800.0,0.12389761]
[1733528549053,0.25,99801.0,99800.0,0.12389761]
[1733528549269,0.25,99801.0,99800.0,0.12489761]
[1733528550157,0.25,99801.0,99800.0,0.12589761]
[1733528550384,0.00017315,99806.0,99800.0,0.12589761]
[1733528550385,0.00017315,99806.0,99801.0,0.023]
[1733528550595,0.00017315,99806.0,99802.0,0.10103136]
[1733528550824,0.00017315,99806.0,99803.0,0.023]
[1733528551032,0.00017315,99806.0,99804.0,0.10002951]
[1733528551262,0.00017315,99806.0,99805.0,0.023]
[1733528551465,0.00017315,99806.0,99805.0,0.12302951]
[1733528551894,0.00117315,99806.0,99805.0,0.12302951]
[1733528552115,0.00117315,99806.0,99805.0,0.19932951]
[1733528552331,0.00117315,99806.0,99805.0,0.31057383]
[1733528552601,0.00217315,99806.0,99805.0,0.31057383]
[1733528552805,0.00017315,99806.0,99805.0,0.31057383]
[1733528553225,0.00017315,99806.0,99805.0,0.31257383]
[1733528553448,0.00017315,99806.0,99805.0,0.31557383]
[1733528553666,0.0883591,99820.0,99805.0,0.31557383]
[1733528553667,0.08563225,99820.0,99811.0,0.023]
[1733528553894,0.08563225,99820.0,99819.0,0.12302951]
[1733528555415,0.08563225,99820.0,99819.0,0.13002951]
[1733528555879,0.08563225,99820.0,99819.0,0.20632951]
[1733528556112,0.08563225,99820.0,99819.0,0.25732951]
[1733528556574,0.08563225,99820.0,99819.0,0.40732951]
[1733528556786,0.08563225,99820.0,99819.0,0.45732951]
[1733528557477,0.08563225,99820.0,99819.0,0.47153536]
[1733528558807,0.08273225,99820.0,99819.0,0.47153536]
[1733528560105,0.08273225,99820.0,99819.0,0.46753536]
[1733528560372,0.07983225,99820.0,99819.0,0.46753536]
[1733528560583,0.07983225,99820.0,99819.0,0.47553536]
[1733528561040,0.07983225,99820.0,99819.0,0.46853536]
[1733528561247,0.07983225,99820.0,99819.0,0.47753536]
[1733528561659,0.0017366,99850.0,99840.0,0.023]
[1733528561873,0.2488366,99860.0,99850.0,0.023]
[1733528562088,0.2488366,99860.0,99853.0,0.10002951]
[1733528562333,0.24941399,99860.0,99854.0,0.023]
[1733528562546,0.00063186,99860.0,99855.0,0.10002951]
[1733528562767,0.00063186,99860.0,99856.0,0.023]
[1733528562975,0.07673186,99860.0,99858.0,0.023]
[1733528563198,0.07673186,99860.0,99859.0,0.12302951]
[1733528563844,0.00063186,99860.0,99859.0,0.12302951]
[1733528564305,0.25063186,99860.0,99859.0,0.12302951]
[1733528565793,0.25063186,99860.0,99859.0,0.12402951]
[1733528567074,0.25149996,99860.0,99859.0,0.12402951]
[1733528568465,0.25149996,99860.0,99859.0,0.12302951]
[1733528568692,0.25149996,99860.0,99859.0,0.12402951]
[1733528569148,0.25149996,99860.0,99859.0,0.12302951]
[1733528571355,0.00149996,99860.0,99859.0,0.12302951]
[1733528572213,0.25149996,99860.0,99859.0,0.12302951]
[1733528572646,0.25149996,99860.0,99859.0,0.12402951]
[1733528573072,0.25149996,99860.0,99859.0,0.12302951]
[1733528573483,0.25149996,99860.0,99859.0,0.10002951]
[1733528579354,0.26458468,99860.0,99859.0,0.10002951]
[1733528580746,0.25149996,99860.0,99859.0,0.12302951]
[1733528581431,0.00149996,99860.0,99859.0,0.12302951]
[1733528582349,0.25149996,99860.0,99859.0,0.12302951]
[1733528582808,0.25149996,99860.0,99859.0,0.10002951]
[1733528583041,0.25888102,99860.0,99859.0,0.10002951]
[1733528583447,0.25388102,99860.0,99859.0,0.10002951]
[1733528588310,0.00738106,99860.0,99859.0,0.10002951]
[1733528588742,0.00738106,99860.0,99859.0,0.12302951]
[1733528589870,0.00824886,99860.0,99859.0,0.12302951]
[1733528590084,0.0008678,99860.0,99859.0,0.12302951]
[1733528591226,0.2508678,99860.0,99859.0,0.12302951]
[1733528593601,0.25825928,99860.0,99859.0,0.12302951]
[1733528596272,0.27191918,99860.0,99859.0,0.12302951]
[1733528599414,0.02191918,99860.0,99859.0,0.12302951]
[1733528599632,0.02326618,99860.0,99859.0,0.12302951]
[1733528600747,0.00960628,99860.0,99859.0,0.12302951]
[1733528600971,0.0022148,99860.0,99859.0,0.12302951]
[1733528602506,0.0022148,99860.0,99859.0,0.12503081]
[1733528602762,0.0022148,99860.0,99859.0,0.12402951]
[1733528603839,0.0022148,99860.0,99859.0,0.12302951]
[1733528604056,0.0022148,99860.0,99859.0,0.12602951]
[1733528604507,0.0022148,99860.0,99859.0,0.12502951]
[1733528604757,0.0022148,99860.0,99859.0,0.12702951]
[1733528612569,0.0022148,99860.0,99859.0,0.10402951]
[1733528613702,0.0022148,99860.0,99859.0,0.12702951]
[1733528618792,0.0022148,99860.0,99859.0,0.12502951]
[1733528619893,0.0022148,99860.0,99859.0,0.20622951]
[1733528620101,0.0022148,99860.0,99859.0,0.20422951]
[1733528620328,0.0022148,99860.0,99859.0,0.20622951]
[1733528620767,0.0022148,99860.0,99859.0,0.20722951]
[1733528620973,0.0022148,99860.0,99859.0,0.20922951]
[1733528622116,0.0022148,99860.0,99859.0,0.25452951]
[1733528622351,0.2480823,99873.0,99860.0,0.023]
[1733528622579,0.2480823,99873.0,99859.0,0.23152951]
[1733528622580,0.0001731,99873.0,99871.0,0.023]
[1733528622836,0.0001731,99873.0,99872.0,0.12302951]
[1733528624018,0.0001731,99873.0,99872.0,0.12402951]
[1733528624936,0.0001731,99873.0,99872.0,0.12502951]
[1733528626375,0.0001731,99873.0,99872.0,0.12302951]
[1733528626612,0.0001731,99873.0,99872.0,0.12502951]
[1733528626852,0.0001731,99873.0,99872.0,0.12402951]
[1733528627086,0.0001731,99873.0,99872.0,0.12602951]
[1733528627314,0.0001731,99873.0,99872.0,0.12802951]
[1733528628504,0.0001731,99873.0,99872.0,0.20332951]
[1733528629628,0.0001731,99873.0,99872.0,0.20132951]
[1733528629875,0.0001731,99873.0,99872.0,0.19832951]
[1733528630108,0.0001731,99873.0,99872.0,0.19132951]
[1733528630335,0.0001731,99873.0,99872.0,0.19532951]
[1733528630568,0.0001731,99873.0,99872.0,0.12002951]
[1733528630808,0.0001731,99873.0,99872.0,0.12502951]
[1733528632210,0.25,99878.0,99872.0,0.12502951]
[1733528632211,0.2472731,99878.0,99873.0,0.023]
[1733528632433,0.2472731,99878.0,99875.0,0.023]
[1733528632652,0.2472731,99878.0,99876.0,0.10002951]
[1733528632877,0.2472731,99878.0,99877.0,0.023]
[1733528633100,0.2472731,99878.0,99877.0,0.12302951]
[1733528633325,0.25,99879.0,99877.0,0.12302951]
[1733528633585,0.25,99879.0,99878.0,0.10002951]
[1733528633779,0.25,99879.0,99878.0,0.12302951]
[1733528635211,0.25,99879.0,99878.0,0.12602951]
[1733528635654,0.25,99879.0,99878.0,0.12802951]
[1733528637038,0.25,99879.0,99878.0,0.12302951]
[1733528637271,0.25,99879.0,99878.0,0.12402951]
[1733528638025,0.25,99879.0,99878.0,0.12602951]
[1733528638483,0.25,99879.0,99878.0,0.12502951]
[1733528638937,0.25,99879.0,99878.0,0.12702951]
[1733528639402,0.26287706,99879.0,99878.0,0.12702951]
[1733528639882,0.26287706,99879.0,99878.0,0.12502951]
[1733528640548,0.26287706,99879.0,99878.0,0.12302951]
[1733528641281,0.25,99879.0,99878.0,0.12302951]
[1733528642158,0.0017378,99880.0,99878.0,0.12302951]
[1733528642377,0.2517378,99880.0,99879.0,0.023]
[1733528642633,0.2517378,99880.0,99879.0,0.12302951]
[1733528643275,0.0017378,99880.0,99879.0,0.12302951]
[1733528643523,0.00123727,99880.0,99879.0,0.12302951]
[1733528644408,0.25123727,99880.0,99879.0,0.12302951]
[1733528649487,0.25863363,99880.0,99879.0,0.12302951]
[1733528652666,0.25863363,99880.0,99872.0,0.0001731]
[1733528652914,0.08549636,99879.0,99872.0,0.0001731]
[1733528653110,0.05,99877.0,99872.0,0.0001731]
[1733528653326,0.00739636,99876.0,99872.0,0.0001731]
[1733528653524,0.00739636,99875.0,99872.0,0.0001731]
[1733528653652,0.00739636,99874.0,99872.0,0.0001731]
[1733528653872,0.00739636,99873.0,99872.0,0.0001731]
[1733528654288,0.05739636,99873.0,99872.0,0.0001731]
[1733528654512,0.05739636,99873.0,99872.0,0.0011731]
[1733528654859,0.05739636,99873.0,99872.0,0.0001731]
[1733528655341,0.3,99873.0,99872.0,0.0021731]
[1733528655589,0.30739636,99873.0,99872.0,0.0021731]
[1733528656900,0.3,99873.0,99872.0,0.0021731]
[1733528657118,0.30739042,99873.0,99872.0,0.0021731]
[1733528657332,0.25,99873.0,99872.0,0.0021731]
[1733528657560,0.30739042,99873.0,99872.0,0.0021731]
[1733528657785,0.30739042,99873.0,99872.0,0.0001731]
[1733528658823,0.31999909,99873.0,99872.0,0.0001731]
[1733528659659,0.39809909,99873.0,99872.0,0.0001731]
[1733528660740,0.39809515,99873.0,99872.0,0.0001731]
[1733528662728,0.53103152,99873.0,99872.0,0.0001731]
[1733528662967,0.39809515,99873.0,99872.0,0.0001731]
[1733528664340,0.39070867,99873.0,99872.0,0.0001731]
[1733528664544,0.39809159,99873.0,99872.0,0.0001731]
[1733528667848,0.39809143,99873.0,99872.0,0.0001731]
[1733528671370,0.39070867,99873.0,99872.0,0.0001731]
[1733528671596,0.39809171,99873.0,99872.0,0.0001731]
[1733528681860,0.31999171,99873.0,99872.0,0.0001731]
[1733528685456,0.31260867,99873.0,99872.0,0.0001731]
[1733528685677,0.32000598,99873.0,99872.0,0.0001731]
[1733528685910,0.27000598,99873.0,99872.0,0.12320261]
[1733528686194,0.25739731,99873.0,99872.0,0.12320261]
[1733528691457,0.25,99873.0,99872.0,0.12320261]
[1733528691690,0.25739379,99873.0,99872.0,0.12320261]
[1733528695470,0.25739379,99873.0,99872.0,0.0231731]
[1733528695714,0.25739379,99873.0,99872.0,0.0001731]
[1733528695960,0.34606829,99873.0,99872.0,0.0001731]
[1733528697144,0.25739273,99873.0,99872.0,0.0001731]
[1733528699526,0.25739348,99873.0,99872.0,0.0001731]
[1733528701844,0.2573936,99873.0,99872.0,0.0001731]
[1733528703998,0.34611472,99873.0,99872.0,0.0001731]
[1733528704224,0.2573936,99873.0,99872.0,0.0001731]
[1733528704681,0.3461175,99873.0,99872.0,0.0001731]
[1733528705398,0.34611767,99873.0,99872.0,0.0001731]
[1733528705840,0.34611767,99873.0,99872.0,0.12320261]
[1733528706080,0.25739377,99873.0,99872.0,0.12320261]
[1733528706293,0.25,99878.0,99873.0,0.023]
[1733528706567,0.25,99878.0,99875.0,0.023]
[1733528706797,0.25,99878.0,99872.0,0.0001731]
[1733528706798,0.25,99878.0,99877.0,0.023]
[1733528707020,0.25,99878.0,99877.0,0.12302951]
[1733528707240,0.00123727,99880.0,99877.0,0.12302951]
[1733528707464,0.00123727,99880.0,99878.0,0.10002951]
[1733528707685,0.00123727,99880.0,99879.0,0.023]
[1733528707921,0.00123727,99880.0,99879.0,0.12302951]
[1733528710441,0.25123727,99880.0,99879.0,0.12302951]
[1733528711327,0.00123727,99880.0,99879.0,0.12302951]
[1733528713351,0.25123727,99880.0,99879.0,0.12302951]
[1733528714701,0.25123727,99880.0,99879.0,0.12402951]
[1733528715780,0.25123727,99880.0,99879.0,0.12502951]
[1733528720384,0.00123727,99880.0,99879.0,0.12502951]
[1733528724130,0.00123727,99880.0,99879.0,0.24892951]
[1733528725218,0.0017378,99890.0,99879.0,0.29792951]
[1733528725441,0.0017378,99890.0,99889.0,0.44692951]
[1733528726629,0.29900965,99981.0,99936.0,0.05]
[1733528726867,0.61156826,100050.0,99890.0,0.15]
[1733528726868,0.05005,100080.0,99999.0,0.05]
[1733528727100,0.06638748,100070.0,100040.0,0.05]
[1733528727321,0.00738586,100070.0,100060.0,0.31371097]
[1733528727547,5e-05,100080.0,100060.0,0.31371097]
[1733528727548,5e-05,100080.0,100060.0,0.79055288]
[1733528727778,5e-05,100080.0,100070.0,0.39803955]
[1733528728019,0.09140543,100100.0,100070.0,0.33420831]
[1733528728282,0.04564379,100080.0,100070.0,1.18552946]
[1733528728503,0.05,100060.0,100030.0,1.00396032]
[1733528728727,0.0963,100050.0,100030.0,0.80692243]
[1733528728956,0.0963,100050.0,100030.0,0.15]
[1733528729210,0.05,100030.0,100000.0,0.15]
[1733528729439,0.15002951,100030.0,100000.0,0.15]
[1733528729701,0.30002951,100030.0,100000.0,0.15]
[1733528729955,0.29622951,100030.0,100000.0,0.15]
[1733528730621,0.29680751,100030.0,100000.0,0.15]
[1733528730879,0.29680751,100030.0,100020.0,0.0038]
[1733528730880,0.150578,100030.0,100020.0,0.0038]
[1733528731103,0.150578,100030.0,100020.0,0.10002951]
[1733528731327,0.150578,100030.0,100000.0,0.1538]
[1733528731553,0.150578,100030.0,100010.0,0.10002951]
[1733528731777,0.29680751,100030.0,100000.0,0.15]
[1733528732305,0.0462,100010.0,100000.0,0.15]
[1733528732534,0.29622951,100010.0,100000.0,0.15]
[1733528734147,0.29922951,100010.0,100000.0,0.151]
[1733528735053,0.30443326,100010.0,100000.0,0.152]
[1733528735503,0.30683326,100010.0,100000.0,0.001]
[1733528736215,0.3191983,100010.0,100000.0,0.001]
[1733528736444,0.3191983,100010.0,99958.0,0.08859492]
[1733528736445,0.0462,99980.0,99958.0,0.08859492]
[1733528736667,0.14622951,99979.0,99950.0,0.08859492]
[1733528736894,0.14622951,99979.0,99941.0,0.08859492]
[1733528736895,0.0486,99963.0,99941.0,0.08859492]
[1733528737119,0.0486,99963.0,99937.0,0.08859492]
[1733528737120,0.0462,99953.0,99937.0,0.08859492]
[1733528737395,0.10002951,99952.0,99931.0,0.08859492]
[1733528737604,0.10002951,99952.0,99924.0,0.08859492]
[1733528737825,0.0462,99953.0,99924.0,0.08859492]
[1733528737826,0.0486,99963.0,99937.0,0.00018528]
[1733528738047,0.00295113,99950.0,99942.0,0.08859492]
[1733528738273,0.00295113,99950.0,99940.0,0.08859492]
[1733528738502,0.00406421,99953.0,99937.0,0.00118528]
[1733528738938,0.00299911,99950.0,99937.0,0.00118528]
[1733528739585,0.00599911,99950.0,99937.0,0.00018528]
[1733528740036,0.00599911,99950.0,99937.0,0.00118528]
[1733528740248,0.00599911,99950.0,99937.0,0.00018528]
[1733528740462,0.01199911,99950.0,99937.0,0.00018528]
[1733528740887,0.00299911,99950.0,99937.0,0.00018528]
[1733528741143,0.0462,99941.0,99937.0,0.00018528]
[1733528741367,0.09998951,99940.0,99937.0,0.00018528]
[1733528742036,0.00899911,99950.0,99937.0,0.00018528]
[1733528742248,0.00999911,99950.0,99937.0,0.0001368]
[1733528742699,0.01099911,99950.0,99937.0,0.0001368]
[1733528742914,0.004,99940.0,99937.0,0.0001368]
[1733528743132,0.00499911,99950.0,99937.0,0.0001368]
[1733528743372,0.0462,99946.0,99937.0,0.0001368]
[1733528743603,0.0462,99939.0,99937.0,0.0001368]
[1733528743844,0.10002951,99938.0,99937.0,0.0001368]
[1733528744292,0.14622951,99938.0,99937.0,0.0001368]
[1733528745470,0.10002951,99938.0,99937.0,0.0001368]
[1733528745929,0.14922951,99938.0,99937.0,0.0001368]
[1733528746145,0.15622951,99938.0,99937.0,0.0011368]
[1733528747659,0.11002951,99938.0,99937.0,0.0011368]
[1733528747870,0.15322951,99938.0,99937.0,0.0011368]
[1733528748750,0.14622951,99938.0,99937.0,0.0001368]
[1733528748957,0.14622951,99938.0,99937.0,0.0011368]
[1733528749193,0.15422951,99938.0,99937.0,0.0011368]
[1733528749623,0.14622951,99938.0,99937.0,0.0001368]
[1733528749856,0.15422951,99938.0,99937.0,0.0011368]
[1733528750562,0.70132951,99938.0,99937.0,0.0011368]
[1733528750999,0.400344,99914.0,99878.0,0.0038]
[1733528751211,0.400344,99914.0,99879.0,0.15382951]
[1733528751212,0.10002951,99913.0,99879.0,0.15382951]
[1733528751669,0.20018,99910.0,99873.0,0.0038]
[1733528751884,0.20018,99910.0,99870.0,0.00235216]
[1733528751885,0.10002951,99909.0,99879.0,0.05]
[1733528752126,4.742e-05,99910.0,99891.0,0.0038]
[1733528752364,4.742e-05,99910.0,99895.0,0.0038]
[1733528752592,4.742e-05,99910.0,99896.0,0.10002951]
[1733528753053,0.009,99909.0,99896.0,0.10002951]
[1733528753264,0.009,99909.0,99896.0,0.09998209]
[1733528753474,0.003,99913.0,99896.0,0.09998209]
[1733528753909,0.001,99910.0,99896.0,0.09998209]
[1733528754112,0.004,99910.0,99896.0,0.09998209]
[1733528754546,0.001,99910.0,99896.0,0.09898209]
[1733528755007,0.00301614,99914.0,99896.0,0.09898209]
[1733528755008,0.002,99913.0,99896.0,0.09898209]
[1733528755285,0.004,99909.0,99896.0,0.09898209]
[1733528755714,0.004,99909.0,99897.0,0.0038]
[1733528755930,0.004,99909.0,99898.0,0.10002951]
[1733528756160,0.001,99910.0,99898.0,0.10002951]
[1733528756388,0.004,99909.0,99898.0,0.10002951]
[1733528756849,0.001,99910.0,99898.0,0.10002951]
[1733528757055,0.00520624,99923.0,99898.0,0.10002951]
[1733528757298,0.001,99909.0,99898.0,0.10002951]
[1733528757946,0.003,99909.0,99898.0,0.10002951]
[1733528758371,0.001,99910.0,99898.0,0.10002951]
[1733528758819,0.00520624,99923.0,99898.0,0.10002951]
[1733528758820,0.003,99909.0,99898.0,0.10002951]
[1733528759062,0.00520624,99923.0,99898.0,0.10002951]
[1733528759287,0.00520624,99923.0,99899.0,0.0538]
[1733528759513,0.00520624,99923.0,99900.0,0.10002951]
[1733528760426,0.001,99909.0,99900.0,0.10002951]
[1733528760661,0.001,99909.0,99900.0,0.10064507]
[1733528760875,0.00520624,99923.0,99900.0,0.10064507]
[1733528761332,0.00820624,99923.0,99900.0,0.10064507]
[1733528761542,0.0030505,99918.0,99900.0,0.10064507]
[1733528763173,0.0070505,99918.0,99900.0,0.10064507]
[1733528763398,0.004,99918.0,99901.0,0.0038]
[1733528763638,0.004,99918.0,99908.0,0.0038]
[1733528763855,0.005,99918.0,99909.0,0.10002951]
[1733528764339,0.004,99918.0,99909.0,0.10002951]
[1733528764812,0.001,99918.0,99909.0,0.10002951]
[1733528765037,0.005,99918.0,99900.0,0.00235256]
[1733528765295,0.004,99918.0,99900.0,0.10238207]
[1733528765533,0.004,99918.0,99909.0,0.001]
[1733528766228,0.00295022,99926.0,99900.0,0.10238207]
[1733528766466,0.001,99918.0,99900.0,0.10238207]
[1733528766741,0.00295022,99926.0,99900.0,0.10238207]
[1733528767223,0.00295022,99926.0,99909.0,0.001]
[1733528767670,0.00295022,99926.0,99900.0,0.10238207]
[1733528767886,0.10002951,99925.0,99900.0,0.00235256]
[1733528768124,0.004,99918.0,99900.0,0.00235256]
[1733528768562,0.004,99918.0,99909.0,0.001]
[1733528769028,0.004,99918.0,99900.0,0.00235256]
[1733528769029,0.00495022,99926.0,99900.0,0.00235256]
[1733528769254,0.00495022,99926.0,99900.0,0.00335256]
[1733528769255,0.005,99925.0,99900.0,0.00335256]
[1733528769537,0.005,99925.0,99922.0,0.0038]
[1733528769761,0.005,99925.0,99924.0,0.0038]
[1733528769986,0.005,99925.0,99924.0,0.10382951]
[1733528770719,0.00520546,99961.0,99926.0,0.0038]
[1733528770942,0.0462,99961.0,99927.0,0.10002951]
[1733528771173,0.01496713,99947.0,99927.0,0.10002951]
[1733528771837,0.01496713,99947.0,99927.0,0.10382951]
[1733528772061,0.0028677,99940.0,99927.0,0.10382951]
[1733528772303,0.0028677,99940.0,99927.0,0.10002951]
[1733528772518,0.0028677,99940.0,99930.0,0.0038]
[1733528772761,0.0078677,99940.0,99931.0,0.10002951]
[1733528772980,0.0028677,99940.0,99931.0,0.10002951]
[1733528773442,0.0018677,99940.0,99931.0,0.10002951]
[1733528773659,0.0008677,99940.0,99931.0,0.10002951]
[1733528773892,0.0008677,99940.0,99931.0,0.10064507]
[1733528774389,0.0008677,99940.0,99931.0,0.10164507]
[1733528775058,0.0008677,99940.0,99939.0,0.0538]
[1733528775315,0.0008677,99940.0,99939.0,0.15382951]
[1733528776249,0.0008677,99940.0,99931.0,0.00161556]
[1733528776699,0.0018677,99940.0,99939.0,0.006]
[1733528777153,0.0018677,99940.0,99939.0,0.011]
[1733528777588,0.0018677,99940.0,99939.0,0.006]
[1733528777804,0.0018677,99940.0,99939.0,0.008]
[1733528778044,0.0008677,99940.0,99939.0,0.002]
[1733528778295,0.0008677,99940.0,99931.0,0.00261556]
[1733528778528,0.0008677,99940.0,99931.0,0.00061556]
[1733528778737,0.0008677,99940.0,99939.0,0.002]
[1733528779177,0.0316237,99940.0,99939.0,0.002]
[1733528779673,0.0316237,99940.0,99939.0,0.001]
[1733528779905,0.13465321,99940.0,99931.0,0.00061556]
[1733528780132,0.030756,99939.0,99931.0,0.00061556]
[1733528780359,0.030756,99939.0,99931.0,0.00161556]
[1733528780804,0.030756,99939.0,99931.0,0.00061556]
[1733528781944,0.037756,99939.0,99931.0,0.00161556]
[1733528782219,0.030756,99938.0,99931.0,0.00161556]
[1733528783603,0.10002951,99937.0,99931.0,0.00161556]
[1733528783830,0.030756,99936.0,99931.0,0.00161556]
[1733528784053,0.10002951,99935.0,99931.0,0.00061556]
[1733528784281,0.030756,99934.0,99931.0,0.00061556]
[1733528784508,0.030756,99934.0,99931.0,0.00161556]
[1733528784737,0.030756,99934.0,99931.0,0.00061556]
[1733528785639,0.003,99934.0,99931.0,0.00061556]
[1733528786543,0.0462,99932.0,99931.0,0.00061556]
[1733528786763,0.1769882,99932.0,99931.0,0.00061556]
[1733528787212,0.1769882,99932.0,99890.0,0.0017378]
[1733528787213,0.15,99910.0,99890.0,0.0017378]
[1733528787467,0.15,99910.0,99900.0,0.00235328]
[1733528787709,0.0307529,99909.0,99900.0,0.00235328]
[1733528787948,0.15,99910.0,99900.0,0.00235328]
[1733528788183,0.03075224,99909.0,99900.0,0.00235328]
[1733528788854,0.03975224,99909.0,99900.0,0.00335328]
[1733528789084,0.009,99909.0,99900.0,0.00335328]
[1733528790295,0.014,99909.0,99900.0,0.00335328]
[1733528791233,0.01483109,99916.0,99900.0,0.00235328]
[1733528791468,0.009,99909.0,99900.0,0.00235328]
[1733528792141,0.014,99909.0,99900.0,0.00235328]
[1733528792373,0.005,99909.0,99900.0,0.00235328]
[1733528792617,0.01,99909.0,99900.0,0.00235328]
[1733528793065,0.005,99909.0,99900.0,0.00235328]
[1733528793558,0.007,99909.0,99900.0,0.00235328]
[1733528793773,0.01,99909.0,99900.0,0.00335328]
[1733528794029,0.005,99909.0,99900.0,0.00235328]
[1733528794247,0.012,99909.0,99900.0,0.00335328]
[1733528794702,0.007,99909.0,99900.0,0.00235328]
[1733528794950,0.012,99909.0,99900.0,0.00335328]
[1733528795222,0.007,99909.0,99900.0,0.00235328]
[1733528795448,0.012,99909.0,99900.0,0.00335328]
[1733528795905,0.01,99909.0,99900.0,0.00335328]
[1733528796357,0.012,99909.0,99900.0,0.00335328]
[1733528796582,0.002,99909.0,99900.0,0.00235328]
[1733528796804,0.01545716,99914.0,99900.0,0.00235328]
[1733528797025,0.007,99909.0,99900.0,0.00335328]
[1733528797249,0.007,99909.0,99900.0,0.00235328]
[1733528797484,0.009,99909.0,99900.0,0.00235328]
[1733528797955,0.001,99909.0,99900.0,0.00235328]
[1733528798176,0.001,99909.0,99900.0,0.00335328]
[1733528798625,0.001,99909.0,99900.0,0.00235328]
[1733528800050,0.005,99909.0,99900.0,0.00235328]
[1733528800278,0.005,99909.0,99905.0,0.0038]
[1733528800511,0.005,99909.0,99906.0,0.10002951]
[1733528800744,0.001,99909.0,99906.0,0.10002951]
[1733528800967,0.004,99909.0,99906.0,0.10002951]
[1733528801893,0.00295367,99926.0,99900.0,0.00235328]
[1733528802140,0.001,99909.0,99900.0,0.00235328]
[1733528802603,0.00295367,99926.0,99900.0,0.00235328]
[1733528803087,0.00295367,99926.0,99906.0,0.001]
[1733528803557,0.00295367,99926.0,99900.0,0.00235328]
[1733528803792,0.00595367,99926.0,99900.0,0.00235328]
[1733528804029,0.10598318,99926.0,99900.0,0.00235328]
[1733528804267,0.15,99925.0,99900.0,0.00235328]
[1733528804491,0.15,99925.0,99906.0,0.001]